bitfinex/quotes_SOLUSD_20241007
["timestamp","ask_amount","ask_price","bid_price","bid_amount"]
[1728263961953,0.12549,149.34,149.3,6.6978]
[1728263962269,24.027864,149.34,149.3,6.6978]
[1728263963060,30.723964,149.34,149.28,16.7459]
[1728263963478,30.723964,149.34,149.29,1.33949602]
[1728263963647,30.723964,149.34,149.29,8.03759602]
[1728263963848,24.027864,149.32,149.28,16.7459]
[1728263964651,24.027864,149.32,149.28,23.4446]
[1728263964970,15.0996,149.37,149.26,21.995]
[1728263964971,24.027864,149.3,149.26,21.995]
[1728263966981,24.027864,149.3,149.27,6.6992]
[1728263970473,24.027864,149.3,149.25,23.0165]
[1728263970676,24.027864,149.3,149.26,6.6996]
[1728263971162,30.725764,149.3,149.25,16.7501]
[1728263971883,24.027864,149.3,149.25,16.7501]
[1728263972088,24.027864,149.28,149.25,16.7501]
[1728263972982,30.726764,149.28,149.23,6.7009]
[1728263973487,23.902374,149.26,149.23,6.7009]
[1728263973790,23.902374,149.26,149.24,6.7004]
[1728263974777,23.902374,149.26,149.22,23.4547]
[1728263975088,0.12549,149.26,149.22,23.4547]
[1728263976317,0.12549,149.26,149.23,6.7009]
[1728263977087,0.12549,149.26,149.24,6.7006]
[1728263977493,0.12549,149.26,149.22,16.7536]
[1728263977792,0.12549,149.27,149.24,16.7504]
[1728263978166,23.902374,149.28,149.27,6.6992]
[1728263978594,20.0,149.29,149.27,6.6992]
[1728263978773,20.0,149.31,149.28,6.6988]
[1728263980096,24.027864,149.3,149.28,6.6988]
[1728263980275,23.776884,149.28,149.27,6.6992]
[1728263981879,15.0996,149.37,149.29,16.7453]
[1728263982201,6.6955,149.36,149.31,6.6971]
[1728263982372,6.3347,149.39,149.32,1.33927385]
[1728263982766,6.3347,149.39,149.31,16.7429]
[1728263983698,6.6948,149.37,149.32,6.6966]
[1728263984277,0.25098,149.35,149.31,16.7429]
[1728263984604,0.25098,149.35,149.33,6.6964]
[1728263984896,0.25098,149.35,149.32,6.697]
[1728263987184,6.94668,149.35,149.31,16.7429]
[1728263987794,0.12549,149.33,149.31,16.7429]
[1728263988179,6.3592,149.43,149.32,34.72798297]
[1728263988400,13.0517,149.43,149.38,6.6943]
[1728263989492,22.9054,149.5,149.36,18.85058297]
[1728263989690,29.5947,149.5,149.4,18.85058297]
[1728263989998,0.8285707,149.51,149.45,6.691]
[1728263989999,7.5174707,149.51,149.45,6.691]
[1728263990492,6.6893,149.5,149.43,6.6916]
[1728263990697,6.6904,149.47,149.42,23.4235]
[1728263991205,20.8285707,149.51,149.38,16.7348]
[1728263991499,20.8285707,149.51,149.37,21.925]
[1728263991700,20.8285707,149.51,149.37,15.8774]
[1728263991701,6.693,149.41,149.37,15.8774]
[1728263992000,23.776884,149.4,149.37,15.8774]
[1728263992517,23.776884,149.4,149.38,1.33865762]
[1728263992675,20.25098,149.44,149.39,6.6934]
[1728263992877,23.776884,149.43,149.39,6.6934]
[1728263993092,23.776884,149.43,149.37,32.6141]
[1728263993308,23.776884,149.43,149.39,6.6938]
[1728263993600,23.776884,149.43,149.37,32.6141]
[1728263993898,23.776884,149.43,149.4,16.7334]
[1728263994583,23.776884,149.43,149.4,23.4268]
[1728263995305,23.776884,149.43,149.4,16.7334]
[1728263995996,23.776884,149.43,149.41,6.6925]
[1728263996583,6.6905,149.47,149.41,6.6925]
[1728263996895,26.6912,149.45,149.4,23.4268]
[1728263997093,20.0,149.45,149.41,1.33840635]
[1728263997401,20.0,149.45,149.41,6.6929]
[1728263997978,23.902374,149.44,149.41,6.6929]
[1728263998600,23.902374,149.44,149.4,23.4267]
[1728263999986,23.902374,149.44,149.4,16.7334]
[1728263999987,30.593974,149.44,149.4,16.7334]
[1728264000192,0.12549,149.41,149.37,15.8774]
[1728264000406,23.776884,149.39,149.34,16.7402]
[1728264000698,23.776884,149.39,149.36,6.6951]
[1728264003006,0.12549,149.41,149.33,40.42488297]
[1728264003007,44.027864,149.42,149.38,6.6942]
[1728264003206,44.027864,149.42,149.39,6.6934]
[1728264003505,43.902374,149.42,149.4,6.6934]
[1728264003685,43.776884,149.42,149.4,6.6934]
[1728264003883,6.6915,149.45,149.4,6.6934]
[1728264004104,38.7111,149.5,149.41,6.6929]
[1728264004105,6.6907,149.46,149.41,6.6929]
[1728264004878,6.6917,149.44,149.39,6.6938]
[1728264005092,6.6925,149.42,149.37,23.4314]
[1728264005281,20.0,149.47,149.37,16.7367]
[1728264005598,23.776884,149.42,149.4,6.6934]
[1728264005906,23.776884,149.42,149.39,6.6938]
[1728264007706,30.469484,149.42,149.37,23.431]
[1728264008790,23.776884,149.42,149.37,16.7367]
[1728264008998,23.776884,149.42,149.38,6.6941]
[1728264010586,23.776884,149.42,149.39,1.33856469]
[1728264010797,23.776884,149.42,149.39,6.6937]
[1728264011004,23.776884,149.43,149.4,1.3384955]
[1728264011313,23.776884,149.43,149.39,6.6937]
[1728264011819,30.468984,149.43,149.39,6.6937]
[1728264012308,30.468984,149.43,149.38,6.6942]
[1728264013212,30.468984,149.43,149.37,16.7367]
[1728264013385,0.12549,149.43,149.39,6.6938]
[1728264013589,20.12549,149.43,149.39,6.6938]
[1728264013789,59.61748,149.43,149.33,21.5743]
[1728264013994,23.776884,149.36,149.33,15.5096]
[1728264014392,23.776884,149.34,149.3,6.6978]
[1728264014916,23.776884,149.35,149.29,39.2716]
[1728264015117,23.776884,149.35,149.31,6.6972]
[1728264015412,23.776884,149.36,149.32,6.6969]
[1728264016198,23.776884,149.36,149.31,6.6973]
[1728264016199,0.12549,149.35,149.31,6.6973]
[1728264019913,0.12549,149.35,149.32,8.03615345]
[1728264020127,20.0,149.39,149.35,6.6955]
[1728264021503,0.12549,149.38,149.34,6.696]
[1728264022204,23.902374,149.38,149.34,6.696]
[1728264022509,23.902374,149.38,149.32,16.7424]
[1728264022712,0.12549,149.36,149.32,16.7424]
[1728264022896,23.902374,149.36,149.32,16.7424]
[1728264023092,30.597574,149.36,149.32,16.7424]
[1728264023718,23.902374,149.36,149.32,23.4394]
[1728264023918,23.902374,149.36,149.32,16.7424]
[1728264023919,23.776884,149.36,149.32,16.7424]
[1728264024115,6.6928,149.42,149.35,16.7391]
[1728264024319,6.6928,149.42,149.37,6.6944]
[1728264024814,16.7284,149.45,149.36,1.33877791]
[1728264025018,16.7284,149.45,149.35,16.7391]
[1728264025208,6.6935,149.4,149.35,23.4346]
[1728264025613,20.0,149.4,149.36,6.6952]
[1728264025813,20.0,149.4,149.37,6.6947]
[1728264026322,20.0,149.41,149.37,6.6947]
[1728264026700,20.0,149.41,149.38,1.33868468]
[1728264027023,23.902374,149.37,149.33,6.6962]
[1728264027203,23.902374,149.37,149.34,6.696]
[1728264027204,23.776884,149.37,149.34,6.696]
[1728264028106,23.776884,149.37,149.33,6.6964]
[1728264032006,23.776884,149.37,149.34,6.696]
[1728264032210,23.776884,149.38,149.34,6.696]
[1728264032525,23.776884,149.36,149.34,6.696]
[1728264032707,6.6939,149.39,149.34,6.696]
[1728264032905,23.776884,149.37,149.34,6.696]
[1728264035320,23.776884,149.37,149.33,6.6965]
[1728264035513,23.776884,149.37,149.34,6.6961]
[1728264037230,23.776884,149.37,149.32,16.7421]
[1728264037414,23.776884,149.37,149.33,6.6965]
[1728264037620,30.471684,149.37,149.32,23.439]
[1728264037807,30.471684,149.37,149.29,22.526]
[1728264037808,6.6962,149.34,149.29,45.97]
[1728264038008,6.6962,149.34,149.18,1.16168109]
[1728264038009,23.776884,149.32,149.25,16.3304]
[1728264038211,30.473884,149.32,149.27,6.6991]
[1728264038710,23.776884,149.3,149.26,16.749]
[1728264038912,23.776884,149.3,149.26,23.4487]
[1728264039420,0.12549,149.29,149.25,6.7001]
[1728264039612,0.12549,149.29,149.23,16.7525]
[1728264039819,0.12549,149.29,149.24,6.7005]
[1728264040022,23.776884,149.28,149.24,6.7005]
[1728264041535,23.776884,149.28,149.23,16.7525]
[1728264041711,20.25098,149.27,149.22,6.7014]
[1728264042023,23.776884,149.24,149.21,6.7019]
[1728264043323,23.776884,149.24,149.19,50.2702]
[1728264043727,0.12549,149.27,149.23,6.701]
[1728264044053,0.12549,149.27,149.22,16.7536]
[1728264044054,23.776884,149.27,149.25,6.7001]
[1728264044217,23.776884,149.27,149.23,6.7006]
[1728264045632,0.12549,149.26,149.23,6.7006]
[1728264046236,0.12549,149.26,149.24,1.34002866]
[1728264046438,0.12549,149.26,149.22,16.7536]
[1728264046733,0.12549,149.26,149.23,6.701]
[1728264047032,0.12549,149.26,149.22,23.4551]
[1728264047436,0.12549,149.26,149.23,1.34003899]
[1728264047617,23.776884,149.27,149.22,16.7536]
[1728264049019,23.776884,149.27,149.24,6.7006]
[1728264050235,23.776884,149.27,149.26,6.6997]
[1728264052137,23.776884,149.27,149.25,6.7001]
[1728264052342,23.776884,149.27,149.24,23.4509]
[1728264052939,0.12549,149.26,149.22,6.7014]
[1728264053118,0.12549,149.26,149.23,8.04104403]
[1728264054037,23.776884,149.27,149.24,6.7005]
[1728264054933,23.776884,149.27,149.22,23.4539]
[1728264055144,23.776884,149.25,149.22,16.7529]
[1728264055519,0.12549,149.24,149.22,16.7529]
[1728264055723,0.12549,149.24,149.2,6.7023]
[1728264055931,0.12549,149.24,149.19,16.757]
[1728264056137,0.12549,149.24,149.2,6.7022]
[1728264056445,0.12549,149.24,149.21,16.754]
[1728264056645,0.12549,149.24,149.21,23.4558]
[1728264058639,0.07234812,149.24,149.21,23.4558]
[1728264059244,23.776884,149.23,149.18,16.758]
[1728264059543,23.776884,149.23,149.18,23.4613]
[1728264059544,23.776884,149.21,149.18,23.4613]
[1728264060637,23.776884,149.21,149.18,16.758]
[1728264060947,23.776884,149.21,149.19,6.7027]
[1728264061527,23.776884,149.21,149.18,16.758]
[1728264062026,0.12549,149.2,149.17,6.7034]
[1728264062238,0.25098,149.2,149.16,6.7041]
[1728264062424,23.776884,149.19,149.15,16.7612]
[1728264062621,0.12549,149.24,149.2,6.7023]
[1728264062827,23.776884,149.21,149.18,6.7033]
[1728264063132,23.902374,149.21,149.16,16.7602]
[1728264063533,23.902374,149.19,149.16,16.7602]
[1728264063931,0.12549,149.18,149.16,23.4643]
[1728264064122,20.25098,149.19,149.13,16.7635]
[1728264064325,23.776884,149.16,149.13,23.4687]
[1728264064728,23.776884,149.16,149.11,6.7062]
[1728264064920,23.776884,149.16,149.1,16.767]
[1728264064921,0.25098,149.15,149.1,16.767]
[1728264065119,0.25098,149.13,149.1,23.4738]
[1728264065324,0.25098,149.13,149.11,6.7063]
[1728264065525,23.776884,149.14,149.13,6.7055]
[1728264065744,43.902374,149.19,149.18,6.7031]
[1728264065950,15.3914,149.22,149.19,16.757]
[1728264066328,6.1116,149.25,149.19,16.757]
[1728264066529,6.1116,149.25,149.24,6.7006]
[1728264066728,6.1116,149.25,149.22,16.7536]
[1728264066935,6.1116,149.25,149.23,6.701]
[1728264067150,15.7627,149.26,149.23,6.701]
[1728264067455,6.1052,149.29,149.2,18.85058297]
[1728264067745,6.1052,149.29,149.26,6.6996]
[1728264068244,6.1052,149.29,149.25,23.4504]
[1728264068621,6.1052,149.29,149.25,16.7503]
[1728264068958,20.0,149.28,149.25,16.7503]
[1728264069947,0.12549,149.27,149.25,23.4503]
[1728264070153,20.0,149.29,149.25,16.7503]
[1728264070324,20.0,149.29,149.25,23.4501]
[1728264070527,20.0,149.29,149.25,16.7503]
[1728264070934,20.0,149.29,149.27,6.6992]
[1728264071359,20.0,149.29,149.25,16.7503]
[1728264071360,23.902374,149.28,149.26,6.6997]
[1728264071653,23.902374,149.28,149.25,16.7503]
[1728264071853,23.902374,149.28,149.21,16.7538]
[1728264072155,23.902374,149.28,149.23,6.701]
[1728264073626,23.902374,149.28,149.19,34.42388297]
[1728264073872,23.902374,149.28,149.24,16.7513]
[1728264074055,43.902374,149.28,149.27,6.6992]
[1728264074426,43.902374,149.28,149.25,6.6997]
[1728264075743,43.902374,149.28,149.24,16.7513]
[1728264075940,43.902374,149.28,149.26,6.6996]
[1728264076853,0.12549,149.28,149.26,6.6996]
[1728264077031,0.12549,149.28,149.24,16.7513]
[1728264077237,0.12549,149.28,149.24,23.4514]
[1728264077438,0.12549,149.28,149.25,6.7]
[1728264080436,0.12549,149.28,149.24,16.7513]
[1728264080638,0.25098,149.28,149.21,16.7546]
[1728264080864,0.25098,149.28,149.26,6.6996]
[1728264081248,0.25098,149.28,149.25,6.7]
[1728264081750,0.12549,149.28,149.26,6.6996]
[1728264082840,23.776884,149.29,149.27,6.6992]
[1728264083035,20.0,149.31,149.26,16.7485]
[1728264083255,16.0523,149.34,149.25,18.85058297]
[1728264083561,16.0523,149.34,149.28,23.4447]
[1728264084565,44.027864,149.33,149.28,23.4447]
[1728264084748,44.027864,149.33,149.29,6.6979]
[1728264084954,20.0,149.33,149.31,6.6974]
[1728264085259,13.0909,149.36,149.3,6.6978]
[1728264085260,26.6958,149.35,149.3,6.6978]
[1728264085446,26.6958,149.35,149.28,16.7463]
[1728264085447,20.0,149.35,149.28,16.7463]
[1728264085653,20.0,149.33,149.29,6.6983]
[1728264086370,23.776884,149.32,149.3,6.6978]
[1728264086552,22.7466,149.38,149.33,6.6964]
[1728264086861,6.6934,149.41,149.35,6.6952]
[1728264087041,6.6936,149.4,149.34,23.4353]
[1728264088058,44.027864,149.39,149.34,23.4353]
[1728264088570,23.776884,149.39,149.35,6.6955]
[1728264089270,23.776884,149.39,149.34,23.4353]
[1728264089651,0.25098,149.38,149.35,6.6956]
[1728264090062,20.0,149.41,149.37,6.6947]
[1728264090369,26.6932,149.41,149.36,6.6951]
[1728264091563,44.027864,149.38,149.34,16.7393]
[1728264091763,23.776884,149.37,149.34,23.435]
[1728264096176,23.776884,149.37,149.36,6.6952]
[1728264096408,20.0,149.41,149.36,6.6952]
[1728264096554,20.0,149.39,149.35,6.6956]
[1728264097456,20.0,149.39,149.34,16.7393]
[1728264097457,0.12549,149.38,149.34,16.7393]
[1728264097670,24.027864,149.38,149.34,23.4353]
[1728264098469,0.25098,149.38,149.35,6.6956]
[1728264100057,0.25098,149.38,149.34,16.7393]
[1728264100374,0.25098,149.38,149.34,23.4354]
[1728264101275,23.776884,149.39,149.35,6.6955]
[1728264101481,20.0,149.41,149.35,1.33901701]
[1728264101680,16.2513,149.46,149.36,16.7371]
[1728264101977,22.9421,149.46,149.41,6.6925]
[1728264102575,6.6917,149.44,149.4,16.7326]
[1728264103053,24.027864,149.43,149.37,16.7365]
[1728264103861,24.027864,149.41,149.37,16.7365]
[1728264104565,30.720864,149.41,149.37,16.7365]
[1728264106982,30.720864,149.41,149.37,23.4312]
[1728264107275,24.027864,149.41,149.37,23.4312]
[1728264110985,24.027864,149.41,149.38,6.6941]
[1728264111578,23.776884,149.41,149.39,6.6935]
[1728264111763,23.776884,149.41,149.4,6.6934]
[1728264112376,23.776884,149.41,149.39,6.6938]
[1728264114461,23.776884,149.41,149.4,6.6934]
[1728264114673,44.027864,149.44,149.41,6.6929]
[1728264114985,44.027864,149.44,149.39,16.7336]
[1728264114986,44.027864,149.44,149.4,6.6933]
[1728264118189,50.719664,149.44,149.39,23.4274]
[1728264118492,23.776884,149.41,149.37,12.05712487]
[1728264118862,23.776884,149.42,149.38,6.6938]
[1728264119089,23.776884,149.43,149.4,6.693]
[1728264120686,23.776884,149.43,149.39,28.79182487]
[1728264120687,23.776884,149.43,149.41,6.6929]
[1728264120894,6.6908,149.46,149.41,1.33845793]
[1728264121064,23.902374,149.45,149.42,6.6925]
[1728264122389,23.902374,149.45,149.41,6.6928]
[1728264122598,6.81709,149.44,149.39,39.6862]
[1728264122796,6.81759,149.43,149.39,16.7347]
[1728264122967,23.776884,149.42,149.39,16.7347]
[1728264124595,23.902374,149.43,149.39,23.4283]
[1728264124901,23.902374,149.43,149.4,6.6933]
[1728264125400,23.776884,149.43,149.4,6.6933]
[1728264126001,23.776884,149.43,149.39,23.4285]
[1728264126594,30.468984,149.43,149.39,16.7347]
[1728264127091,0.12549,149.42,149.39,16.7347]
[1728264127389,30.470184,149.41,149.36,39.6735]
[1728264128397,23.776884,149.39,149.36,16.7376]
[1728264129166,30.470684,149.39,149.33,16.741]
[1728264129474,30.470684,149.39,149.34,6.696]
[1728264130387,6.94538,149.38,149.33,23.4374]
[1728264130605,23.776884,149.39,149.34,1.33901469]
[1728264130784,23.776884,149.39,149.36,6.6948]
[1728264130977,6.693,149.41,149.37,6.6947]
[1728264130978,20.12549,149.4,149.37,6.6947]
[1728264131180,23.776884,149.39,149.36,6.6951]
[1728264131583,23.776884,149.39,149.35,23.4341]
[1728264131978,23.776884,149.37,149.33,6.6961]
[1728264132495,0.12549,149.36,149.32,33.1288]
[1728264133069,23.776884,149.37,149.33,1.33915965]
[1728264133271,23.776884,149.37,149.34,16.7392]
[1728264133465,23.776884,149.37,149.36,6.6952]
[1728264134095,6.6921,149.43,149.38,6.6941]
[1728264134293,20.0,149.42,149.38,6.6941]
[1728264134472,20.0,149.42,149.37,16.7365]
[1728264134791,26.6925,149.42,149.37,23.4311]
[1728264135197,6.6917,149.44,149.39,6.6938]
[1728264135396,6.6921,149.43,149.37,23.4308]
[1728264136604,24.027864,149.42,149.38,6.6942]
[1728264137096,23.776884,149.43,149.39,8.0325357]
[1728264137481,6.691,149.46,149.41,6.6929]
[1728264137671,20.0,149.45,149.39,16.7338]
[1728264137871,20.0,149.45,149.4,6.6933]
[1728264138972,24.027864,149.44,149.39,16.7338]
[1728264139193,20.0,149.45,149.42,6.6924]
[1728264139376,20.0,149.46,149.42,6.6924]
[1728264139577,20.0,149.47,149.41,23.4246]
[1728264139895,20.0,149.44,149.41,16.7317]
[1728264140097,20.0,149.44,149.4,6.6932]
[1728264140268,20.0,149.44,149.41,6.6928]
[1728264140478,23.776884,149.44,149.4,16.7328]
[1728264140805,15.5333,149.48,149.4,16.7328]
[1728264140806,6.6898,149.48,149.43,6.6919]
[1728264140970,6.6893,149.5,149.44,6.6915]
[1728264141168,0.8285707,149.51,149.42,16.7305]
[1728264141371,6.6898,149.49,149.43,6.692]
[1728264142181,0.12549,149.46,149.42,23.423]
[1728264142495,20.12549,149.43,149.39,23.4281]
[1728264142696,23.776884,149.42,149.39,23.4281]
[1728264142902,23.776884,149.42,149.4,6.6933]
[1728264143275,23.776884,149.42,149.39,23.4282]
[1728264144191,23.776884,149.42,149.4,6.6933]
[1728264144874,23.776884,149.42,149.41,6.6929]
[1728264145107,3.24,149.54,149.44,6.6915]
[1728264145108,6.6898,149.49,149.44,6.6915]
[1728264145302,6.689,149.5,149.45,6.6911]
[1728264145598,5.689,149.5,149.45,6.6911]
[1728264145900,13.5251707,149.51,149.46,6.6907]
[1728264146106,0.8285707,149.51,149.48,6.6898]
[1728264146306,0.8285707,149.51,149.46,16.7258]
[1728264146477,0.8285707,149.51,149.47,6.6901]
[1728264146984,7.5171707,149.51,149.46,23.4165]
[1728264147183,20.12549,149.48,149.46,23.4165]
[1728264147490,23.776884,149.47,149.46,23.4165]
[1728264147687,0.12549,149.5,149.48,6.6898]
[1728264147878,0.8285707,149.51,149.46,16.7258]
[1728264148305,6.6894,149.5,149.43,16.7299]
[1728264148978,6.6894,149.5,149.45,6.6911]
[1728264148979,44.027864,149.49,149.45,6.6911]
[1728264149308,0.8285707,149.51,149.45,16.7269]
[1728264149512,0.8285707,149.51,149.5,6.6889]
[1728264150195,0.8285707,149.51,149.49,6.6893]
[1728264150684,23.776884,149.5,149.49,6.6893]
[1728264151284,23.776884,149.5,149.48,6.6898]
[1728264151484,0.12549,149.49,149.48,6.6898]
[1728264151679,23.776884,149.5,149.48,6.6898]
[1728264151891,23.776884,149.5,149.47,16.7246]
[1728264152301,23.776884,149.5,149.49,6.6894]
[1728264152497,0.8285707,149.51,149.41,16.7322]
[1728264152498,26.94138,149.47,149.41,16.7322]
[1728264152704,0.25098,149.45,149.41,16.7322]
[1728264152906,0.25098,149.45,149.41,23.4251]
[1728264153992,20.25098,149.45,149.41,16.7322]
[1728264154205,20.25098,149.45,149.37,16.3619]
[1728264154206,0.25098,149.43,149.37,16.3619]
[1728264154409,0.25098,149.43,149.39,6.6938]
[1728264154604,0.25098,149.43,149.38,23.4298]
[1728264154810,23.776884,149.42,149.38,23.4298]
[1728264156604,24.027864,149.43,149.39,6.6938]
[1728264157206,23.776884,149.42,149.4,6.6934]
[1728264157599,23.776884,149.42,149.39,6.6938]
[1728264158115,23.776884,149.42,149.38,23.4298]
[1728264158694,0.25098,149.41,149.38,23.4298]
[1728264160793,0.25098,149.41,149.35,16.7388]
[1728264161418,20.25098,149.41,149.35,16.7388]
[1728264161897,0.25098,149.39,149.35,16.7388]
[1728264162088,0.25098,149.39,149.36,6.6951]
[1728264163624,23.776884,149.4,149.37,6.6947]
[1728264163819,6.6915,149.45,149.4,6.6931]
[1728264164123,6.6921,149.43,149.39,6.6938]
[1728264164414,20.0,149.42,149.39,6.6938]
[1728264164804,20.0,149.42,149.37,16.7358]
[1728264164805,20.0,149.42,149.38,6.6942]
[1728264165006,24.027864,149.41,149.37,23.4304]
[1728264167213,24.027864,149.41,149.37,16.7358]
[1728264167428,24.027864,149.41,149.38,6.6942]
[1728264167717,20.0,149.42,149.38,1.33885067]
[1728264167915,20.12549,149.44,149.4,6.6934]
[1728264168496,15.4218,149.48,149.41,16.7318]
[1728264168926,6.6906,149.47,149.42,6.6924]
[1728264169903,0.25098,149.45,149.42,6.6924]
[1728264170202,0.25098,149.46,149.41,16.7318]
[1728264170404,0.12549,149.44,149.41,16.7318]
[1728264171319,23.902374,149.44,149.41,16.7318]
[1728264171514,20.12549,149.41,149.36,6.6951]
[1728264171710,20.12549,149.41,149.35,16.739]
[1728264171711,30.595874,149.4,149.35,23.4345]
[1728264171914,23.902374,149.4,149.36,6.6951]
[1728264172730,23.776884,149.4,149.37,16.7362]
[1728264172921,23.776884,149.4,149.38,1.33872951]
[1728264173127,23.776884,149.43,149.41,6.6929]
[1728264173431,23.776884,149.42,149.41,6.6929]
[1728264173725,23.776884,149.42,149.4,6.6933]
[1728264173925,23.776884,149.42,149.39,23.4276]
[1728264174121,23.776884,149.42,149.36,16.738]
[1728264174423,23.776884,149.42,149.34,34.59580942]
[1728264174424,43.776884,149.4,149.35,6.6956]
[1728264174629,23.902374,149.39,149.36,6.6951]
[1728264174827,16.7299,149.44,149.36,6.6951]
[1728264174828,6.6929,149.42,149.36,6.6951]
[1728264175123,24.027864,149.43,149.36,6.6951]
[1728264176036,23.902374,149.4,149.36,6.6951]
[1728264177110,23.776884,149.4,149.37,6.6946]
[1728264177338,23.776884,149.4,149.39,6.6938]
[1728264178313,20.0,149.43,149.39,6.6938]
[1728264178528,20.0,149.43,149.4,6.6933]
[1728264178911,20.0,149.44,149.4,6.6933]
[1728264179536,23.902374,149.43,149.4,6.6933]
[1728264179737,20.0,149.44,149.43,6.692]
[1728264180111,20.0,149.46,149.42,6.6924]
[1728264180429,20.0,149.45,149.42,6.6924]
[1728264180833,20.0,149.47,149.42,6.6924]
[1728264181843,20.0,149.47,149.43,6.692]
[1728264182317,20.0,149.47,149.42,16.7305]
[1728264182525,6.6894,149.49,149.44,6.6916]
[1728264182932,6.689,149.5,149.45,6.6911]
[1728264183127,7.5170707,149.51,149.46,6.6903]
[1728264183327,0.8285707,149.51,149.47,6.6902]
[1728264184342,27.5170707,149.51,149.46,6.6906]
[1728264185240,20.12549,149.49,149.46,6.6906]
[1728264185414,23.776884,149.48,149.46,6.6906]
[1728264185611,20.0,149.49,149.47,6.6903]
[1728264185815,20.8285707,149.51,149.47,6.6903]
[1728264186018,20.8285707,149.51,149.43,18.83950942]
[1728264186240,0.8285707,149.51,149.48,6.6898]
[1728264187641,23.776884,149.5,149.47,6.6902]
[1728264187945,0.12549,149.49,149.46,23.4165]
[1728264188739,0.12549,149.49,149.41,18.83950942]
[1728264188913,0.12549,149.47,149.43,16.7301]
[1728264189118,0.12549,149.47,149.44,6.6915]
[1728264192061,23.776884,149.48,149.45,6.6911]
[1728264192742,23.902374,149.49,149.45,6.6911]
[1728264193139,0.12549,149.48,149.45,6.6911]
[1728264195543,0.8285707,149.51,149.47,6.6903]
[1728264195754,23.776884,149.5,149.47,6.6903]
[1728264196259,0.8285707,149.51,149.48,6.6898]
[1728264196474,0.8285707,149.51,149.47,35.25354564]
[1728264196664,0.8285707,149.51,149.49,6.6893]
[1728264198839,23.776884,149.5,149.47,21.766]
[1728264204462,23.776884,149.5,149.47,6.6899]
[1728264204656,23.776884,149.5,149.46,6.6907]
[1728264205343,23.776884,149.5,149.43,35.29790942]
[1728264205344,30.466684,149.48,149.43,23.1504]
[1728264205551,20.12549,149.49,149.42,22.7897]
[1728264205552,30.467684,149.46,149.42,16.7308]
[1728264205840,30.467684,149.46,149.39,33.1928]
[1728264205841,23.776884,149.44,149.39,33.1928]
[1728264206250,23.776884,149.44,149.42,6.6925]
[1728264209666,20.12549,149.47,149.43,6.692]
[1728264209852,23.776884,149.46,149.43,6.692]
[1728264210060,0.12549,149.45,149.42,6.6925]
[1728264211766,23.776884,149.46,149.41,16.7318]
[1728264211947,23.776884,149.46,149.44,6.6916]
[1728264212143,23.776884,149.46,149.41,16.7318]
[1728264212347,23.776884,149.46,149.43,6.6919]
[1728264212779,23.902374,149.47,149.43,6.6919]
[1728264212944,0.12549,149.46,149.42,6.6924]
[1728264214788,0.12549,149.46,149.41,16.7318]
[1728264215072,23.776884,149.47,149.44,6.6916]
[1728264215376,43.902374,149.48,149.44,6.6916]
[1728264218574,43.902374,149.48,149.41,16.7318]
[1728264219180,0.12549,149.47,149.39,23.1518]
[1728264219374,23.902374,149.42,149.38,16.7354]
[1728264219549,23.902374,149.42,149.38,23.4297]
[1728264220968,23.902374,149.42,149.38,16.7354]
[1728264221160,30.594974,149.42,149.38,16.7354]